fUST/lending_fUST_20241016
["ID","MTS","AMOUNT","RATE_DAILY","PERIOD"]
[340361407,1729087397341,-151.0,0.00019933,2]
[340361408,1729087397367,-151.0,0.00019933,2]
[340361409,1729087397394,-270.377239,0.00019933,2]
[340361410,1729087397424,-270.377239,0.00019933,2]
[340361411,1729087397449,-151.420846,0.00019933,2]
[340361412,1729087397475,-185.761,0.00019952,2]
[340361413,1729087397501,-151.0,0.0001998,2]
[340361414,1729087397526,-151.0,0.0001998,2]
[340361415,1729087397552,-151.0,0.0001998,2]
[340361416,1729087397578,-151.0,0.0001998,2]
[340361417,1729087397604,-490.745927,0.0001998,2]
[340361418,1729087397632,-490.745927,0.0001998,2]
[340361419,1729087397660,-151.0,0.0001998,2]
[340361420,1729087397690,-284.390726,0.0001998,2]
[340361421,1729087397717,-284.390726,0.0001998,2]
[340361422,1729087397743,-151.0,0.0001998,2]
[340361423,1729087397769,-151.0,0.0001998,2]
[340361424,1729087397796,-409.086149,0.0001998,2]
[340361425,1729087397822,-409.086149,0.0001998,2]
[340361426,1729087397852,-217.117132,0.0001998,2]
[340361427,1729087397878,-217.117132,0.0001998,2]
[340361428,1729087397904,-151.0,0.0001999,2]
[340361429,1729087397935,-151.0,0.0001999,2]
[340361430,1729087397968,-151.0,0.0001999,2]
[340361431,1729087397994,-212.142994,0.0001999,2]
[340361432,1729087398039,-151.0,0.0001999,2]
[340361433,1729087398066,-151.0,0.0001999,2]
[340361434,1729087398095,-11635.0365385,0.0001999,3]
[340361435,1729087398127,-18230.3438512,0.0001999,3]
[340361436,1729087398156,-151.0,0.0001999,2]
[340361437,1729087398191,-151.0,0.0001999,2]
[340361438,1729087398218,-151.0,0.0001999,2]
[340361439,1729087398245,-151.0,0.0001999,2]
[340361440,1729087398273,-164.356996,0.0001999,2]
[340361441,1729087398304,-164.356996,0.0001999,2]
[340361442,1729087398332,-151.0,0.0001999,2]
[340361443,1729087398359,-151.0,0.0001999,2]
[340361444,1729087398387,-150.0,0.0002,2]
[340361445,1729087398416,-8979.142087,0.0002,2]
[340361446,1729087398453,-1860.93014756,0.0002,2]
[340361447,1729087398480,-349.57817678,0.0002,2]
[340361448,1729087398507,-151.0,0.0002,2]
[340361449,1729087398538,-151.0,0.0002,2]
[340361450,1729087398566,-270.377239,0.0002,2]
[340361451,1729087398594,-270.377239,0.0002,2]
[340361452,1729087398621,-150.0,0.0002,2]
[340361453,1729087399375,500.0,0.00019156,2]
[340361454,1729087399547,1500.0,0.00019223,2]
[340361455,1729087399614,1000.0,0.00019183,2]
[340361456,1729087399648,1657.60152383,0.00019499,2]
[340361457,1729087399681,2500.0,0.00019322,2]
[340361458,1729087399710,2000.0,0.0001927,2]
[340361459,1729087399744,3000.0,0.00019378,2]
[340361460,1729087399773,3500.0,0.00019437,2]
[340361461,1729087399904,3000.0,0.0002,2]
[340361462,1729087401445,1186.85913427,0.00017935,2]
[340361463,1729087401634,1186.85913427,0.00018338,2]
[340361464,1729087401824,22.28173146,0.00019196,3]
[340361465,1729087448249,-246.345708,0.00018467,2]
[340361466,1729087448275,-420.46029,0.00018467,2]
[340361467,1729087448300,-420.46029,0.00018467,2]
[340361468,1729087448325,-271.606811,0.00018748,2]
[340361469,1729087448352,-1164.57740281,0.00019196,3]
[340361470,1729087448377,-300.0,0.00019205,2]
[340361471,1729087448403,-300.0,0.00019205,2]
[340361472,1729087448427,-3500.0,0.00019206,2]
[340361473,1729087448452,-3500.0,0.00019206,2]
[340361474,1729087448478,-420.46029,0.00019593,2]
[340361475,1729087448504,-420.46029,0.00019593,2]
[340361476,1729087448529,-3500.0,0.00019603,2]
[340361477,1729087448554,-3500.0,0.00019603,2]
[340361478,1729087448581,-1186.85913427,0.00019626,3]
[340361479,1729087448611,-420.46029,0.0001998,2]
[340361480,1729087448636,-420.46029,0.0001998,2]
[340361481,1729087448663,-1186.85913427,0.0001999,3]
[340361482,1729087448689,-3500.0,0.0001999,2]
[340361483,1729087448717,-2387.472609,0.0001999,2]
[340361486,1729087743053,1000.0,0.0002,12]
[340361499,1729087832590,-151.0,0.00018467,2]
[340361501,1729087832601,-160.714291,0.00019154,2]
[340361503,1729087832611,-158.891529,0.00019593,2]
[340361505,1729087832621,-200.0,0.0001983,2]
[340361506,1729087832630,-449.68408522,0.0001999,2]
[340361512,1729087832690,-4113.36293682,0.0001999,2]
[340361513,1729087832700,-872.441842,0.0002,2]
[340361514,1729087832710,-1000.0,0.0002,5]
[340361515,1729087832720,-1105.7803597,0.0002001,2]
[340361655,1729087840800,-1205.17078076,0.0002001,2]
[340361656,1729087840825,-689.04885954,0.0002001,2]
[340361657,1729087840835,-300.0,0.00020019,2]
[340361658,1729087840845,-300.0,0.00020019,2]
[340361659,1729087840854,-151.0,0.0002002,2]
[340361660,1729087840863,-151.0,0.0002002,2]
[340361661,1729087840873,-151.0,0.0002002,2]
[340361662,1729087840882,-151.0,0.0002002,2]
[340361663,1729087840892,-3000.0,0.0002002,2]
[340361664,1729087840901,-151.0,0.0002003,2]
[340361665,1729087840910,-3000.0,0.0002003,2]
[340361666,1729087840920,-3000.0,0.0002004,2]
[340361667,1729087840930,-3000.0,0.0002005,2]
[340361668,1729087840939,-267.169556,0.0002006,2]
[340361669,1729087840949,-151.0,0.0002006,2]
[340361670,1729087840958,-151.0,0.0002006,2]
[340361671,1729087840967,-151.0,0.0002006,2]
[340361672,1729087840977,-151.0,0.0002006,2]
[340361673,1729087840986,-284.390726,0.0002006,2]
[340361674,1729087841039,-284.390726,0.0002006,2]
[340361675,1729087841049,-151.0,0.0002006,2]
[340361676,1729087841059,-253.557702,0.0002006,2]
[340361677,1729087841071,-217.117132,0.0002006,2]
[340361678,1729087841081,-217.117132,0.0002006,2]
[340361679,1729087841090,-3000.0,0.0002006,2]
[340361680,1729087841099,-3000.0,0.0002007,2]
[340361681,1729087841109,-515.15453956,0.0002007,2]
[340361682,1729087841118,-270.377239,0.00020075,2]
[340361683,1729087841127,-270.377239,0.00020075,2]
[340361684,1729087841137,-3000.0,0.0002008,2]
[340361685,1729087841147,-3595.833348,0.0002009,2]
[340361686,1729087841156,-1352.0773453,0.00020111,2]
[340361687,1729087841165,-160.714291,0.00020152,2]
[340361688,1729087841174,-600.0,0.0002016,2]
[340361689,1729087841183,-151.0,0.00020357,2]
[340361690,1729087841193,-151.0,0.00020357,2]
[340361691,1729087841202,-151.0,0.00020357,2]
[340361692,1729087841211,-151.0,0.00020357,2]
[340361693,1729087841221,-151.0,0.00020367,2]
[340361694,1729087841230,-151.0,0.00020367,2]
[340361695,1729087841239,-151.0,0.00020367,2]
[340361696,1729087841249,-151.0,0.00020367,2]
[340361697,1729087841258,-190.38655,0.00020367,2]
[340361698,1729087841267,-151.0,0.00020367,2]
[340361699,1729087841276,-600.0,0.0002037,2]
[340361700,1729087841285,-35316.81988062,0.00020377,2]
[340361701,1729087841294,-264.733392,0.00020377,2]
[340361702,1729087841303,-270.377239,0.00020377,2]
[340361703,1729087841315,-270.377239,0.00020377,2]
[340361704,1729087841325,-151.0,0.00020377,2]
[340361705,1729087841334,-151.0,0.00020377,2]
[340361706,1729087841343,-151.0,0.00020377,2]
[340361707,1729087841353,-151.0,0.00020377,2]
[340361708,1729087841362,-284.390726,0.00020377,2]
[340361709,1729087841374,-284.390726,0.00020377,2]
[340361710,1729087841383,-151.0,0.00020377,2]
[340361711,1729087841392,-151.0,0.00020377,2]
[340361712,1729087841401,-151.0,0.00020377,2]
[340361713,1729087841410,-217.117132,0.00020377,2]
[340361714,1729087841419,-217.117132,0.00020377,2]
[340361715,1729087841428,-151.0,0.00020377,2]
[340361716,1729087841438,-600.0,0.0002058,2]
[340361717,1729087841448,-4294.70808201,0.0002066,7]
[340361718,1729087841457,-151.0,0.0002066,2]
[340361719,1729087841468,-151.0,0.0002066,2]
[340361720,1729087841477,-600.0,0.0002079,2]
[340361721,1729087841487,-150.112233,0.000208,4]
[340361722,1729087841496,-151.028454,0.000208,2]
[340361723,1729087841505,-203.67999548,0.000208,2]
[340361724,1729087841514,-203.67999547,0.00020822,2]
[340361725,1729087841525,-203.67999547,0.00020844,2]
[340361726,1729087841534,-203.67999547,0.00020866,2]
[340361727,1729087841544,-9889.78105773,0.0002087,3]
[340361728,1729087841555,-15495.7922735,0.0002087,3]
[340361729,1729087841567,-1175.87492428,0.00020888,2]
[340361730,1729087841576,-203.67999547,0.00020888,2]
[340361731,1729087841585,-270.377239,0.0002089,2]
[340361732,1729087841595,-270.377239,0.0002089,2]
[340361733,1729087841604,-151.0,0.0002089,2]
[340361734,1729087841613,-151.0,0.0002089,2]
[340361735,1729087841622,-210.59661716,0.0002089,2]
[340361736,1729087841631,-151.0,0.0002089,2]
[340361737,1729087841642,-284.390726,0.0002089,2]
[340361738,1729087841651,-284.390726,0.0002089,2]
[340361739,1729087841661,-151.0,0.0002089,2]
[340361740,1729087841670,-151.0,0.0002089,2]
[340361741,1729087841680,-151.0,0.0002089,2]
[340361742,1729087841689,-217.117132,0.0002089,2]
[340361743,1729087841698,-217.117132,0.0002089,2]
[340361744,1729087841707,-164.356996,0.0002089,2]
[340361745,1729087841716,-151.0,0.0002089,2]
[340361746,1729087841726,-19779.5621155,0.0002089,3]
[340361747,1729087841735,-30991.584547,0.0002089,3]
[340361748,1729087841744,-86314.40095502,0.000209,2]
[340361749,1729087841754,-270.377239,0.000209,2]
[340361750,1729087841764,-270.377239,0.000209,2]
[340361751,1729087841774,-151.0,0.000209,2]
[340361752,1729087841784,-151.0,0.000209,2]
[340361753,1729087841796,-151.0,0.000209,2]
[340361754,1729087841805,-284.390726,0.000209,2]
[340361755,1729087841819,-284.390726,0.000209,2]
[340361756,1729087841830,-151.0,0.000209,2]
[340361757,1729087841841,-151.0,0.000209,2]
[340361758,1729087841851,-151.0,0.000209,2]
[340361759,1729087841862,-217.117132,0.000209,2]
[340361760,1729087841872,-217.117132,0.000209,2]
[340361761,1729087841884,-164.356996,0.000209,2]
[340361762,1729087841894,-151.0,0.000209,2]
[340361763,1729087841905,-151.0,0.00020968,2]
[340361764,1729087841915,-151.0,0.00020968,2]
[340361765,1729087841925,-164.356996,0.00020968,2]
[340361766,1729087841936,-9889.78105773,0.00020968,3]
[340361767,1729087841945,-15260.58629398,0.00020968,3]
[340361787,1729087846903,-235.20597952,0.00020968,3]
[340361788,1729087846913,-500.0,0.00020973,2]
[340361789,1729087846922,-500.0,0.00020973,2]
[340361790,1729087846934,-500.0,0.00020973,2]
[340361791,1729087846944,-301.47437953,0.00020977,2]
[340361792,1729087846956,-153.38498903,0.00020977,2]
[340361793,1729087846966,-254.86402671,0.00020977,2]
[340361794,1729087846976,-161.54284554,0.00020977,2]
[340361795,1729087846984,-19345.43063067,0.00020978,3]
[340361798,1729088150215,158.0,0.00027,120]
[340361806,1729088371422,323.58,0.00027,60]
[340361852,1729089031766,-1750.04931198,0.00018,10]
[340361854,1729089031776,-300.0,0.00018999,2]
[340361856,1729089031786,-300.0878909,0.00019,3]
[340361858,1729089031795,-933.14790812,0.00019,2]
[340361880,1729089038358,-3536.73405325,0.00019,2]
[340361881,1729089038370,-4251.56956112,0.00019,2]
[340362117,1729089111861,158.0,0.00027,120]
[340362120,1729089671198,150.0,0.00027,120]
[340362121,1729089674178,150.0,0.00027,120]
[340362122,1729089676694,150.0,0.00027,120]
[340362123,1729089677470,150.0,0.00027,120]
[340362124,1729089680581,150.0,0.00027,120]
[340362125,1729089755158,150.0,0.00027,120]
[340362126,1729089808978,150.0,0.00027,120]
[340362128,1729089881757,150.0,0.00027,120]
[340362136,1729089928482,150.0,0.00027,120]
[340362143,1729090000755,150.0,0.00027,120]
[340362158,1729090137856,159.0,0.0002424,120]
[340362230,1729090232070,-213.91757888,0.000149,2]
[340362232,1729090232080,-4402.73345121,0.00015,2]
[340362234,1729090232091,-160.385417,0.00015886,2]
[340362236,1729090232100,-219.965112,0.00015975,2]
[340362238,1729090232109,-925.5166089,0.00016061,2]
[340362240,1729090232118,-160.21666,0.00016434,2]
[340362242,1729090232127,-160.21666,0.00016512,2]
[340362244,1729090232136,-160.21666,0.0001659,2]
[340362246,1729090232146,-219.965112,0.0001666,2]
[340362248,1729090232155,-160.21666,0.00016668,2]
[340362250,1729090232164,-160.385417,0.00016722,2]
[340362252,1729090232174,-160.21666,0.00016746,2]
[340362254,1729090232183,-160.21666,0.00016823,2]
[340362256,1729090232193,-300.0,0.00016897,2]
[340362258,1729090232203,-3768.88993525,0.00016897,2]
[340362260,1729090232212,-300.0,0.00016897,2]
[340362262,1729090232222,-1253.85380663,0.00016898,2]
[340362326,1729090240018,-1746.14619337,0.00016898,2]
[340362327,1729090240028,-160.21666,0.00016901,2]
[340362328,1729090240037,-160.21666,0.00016979,2]
[340362329,1729090240046,-160.21666,0.00017057,2]
[340362330,1729090240056,-160.21666,0.00017135,2]
[340362331,1729090240065,-160.21666,0.00017213,2]
[340362332,1729090240074,-160.21666,0.00017291,2]
[340362333,1729090240084,-219.965112,0.00017345,2]
[340362334,1729090240093,-160.385417,0.00017558,2]
[340362335,1729090240102,-573.29495644,0.00017756,2]
[340362336,1729090240112,-3992.66614432,0.00018357,2]
[340362337,1729090240120,-420.0,0.00018457,2]
[340362338,1729090240129,-420.0,0.00018587,2]
[340362339,1729090240139,-333.0022448,0.0001878,2]
[340362340,1729090240148,-568.45743713,0.000188,2]
[340362341,1729090240157,-191.05,0.00018861,2]
[340362342,1729090240167,-193.8033371,0.000189,2]
[340362343,1729090240176,-5748.43043888,0.00019,2]
[340362344,1729090240186,-151.0,0.00019,2]
[340362345,1729090240196,-24900.0,0.00019035,2]
[340362346,1729090240205,-177.331145,0.00019178,2]
[340362347,1729090240214,-173.726534,0.00019376,2]
[340362348,1729090240223,-153.0,0.0001959,2]
[340362349,1729090240232,-150.0,0.0001964,2]
[340362350,1729090240242,-527.0,0.0001964,2]
[340362351,1729090240252,-1157.0,0.0001964,2]
[340362352,1729090240261,-1806.0,0.0001964,2]
[340362353,1729090240273,-150.0,0.0001964,2]
[340362354,1729090240283,-153.0,0.00019652,2]
[340362355,1729090240292,-212.60845601,0.0001989,2]
[340362356,1729090240301,-317.75893776,0.000199,2]
[340362357,1729090240311,-1000.0,0.000199,2]
[340362358,1729090240320,-185.761,0.00019952,2]
[340362359,1729090240330,-171.54,0.0001998,3]
[340362360,1729090240340,-171.53,0.0001998,3]
[340362361,1729090240349,-514.64,0.0001998,3]
[340362362,1729090240359,-23576.8573252,0.0001999,3]
[340362363,1729090240379,-195.2060391,0.0001999,3]
[340362364,1729090240389,-42150.2118532,0.0001999,3]
[340362365,1729090240399,-500.0,0.00019999,2]
[340362366,1729090240408,-500.0,0.00019999,2]
[340362367,1729090240418,-500.0,0.00019999,2]
[340362368,1729090240427,-500.0,0.00019999,2]
[340362369,1729090240437,-500.0,0.00019999,2]
[340362370,1729090240446,-500.0,0.00019999,2]
[340362371,1729090240455,-500.0,0.00019999,2]
[340362372,1729090240465,-500.0,0.00019999,2]
[340362373,1729090240474,-500.0,0.00019999,2]
[340362374,1729090240484,-500.0,0.00019999,2]
[340362375,1729090240493,-500.0,0.00019999,2]
[340362376,1729090240502,-500.0,0.00019999,2]
[340362377,1729090240511,-500.0,0.00019999,2]
[340362378,1729090240524,-500.0,0.00019999,2]
[340362379,1729090240534,-500.0,0.00019999,2]
[340362380,1729090240544,-600.0,0.00019999,2]
[340362381,1729090240554,-500.0,0.00019999,2]
[340362382,1729090240564,-500.0,0.00019999,2]
[340362383,1729090240573,-500.0,0.00019999,2]
[340362384,1729090240583,-500.0,0.00019999,2]
[340362385,1729090240592,-500.0,0.00019999,2]
[340362386,1729090240602,-500.0,0.00019999,2]
[340362387,1729090240611,-500.0,0.00019999,2]
[340362388,1729090240621,-500.0,0.00019999,2]
[340362389,1729090240631,-500.0,0.00019999,2]
[340362390,1729090240640,-500.0,0.00019999,2]
[340362391,1729090240649,-500.0,0.00019999,2]
[340362392,1729090240659,-500.0,0.00019999,2]
[340362393,1729090240668,-500.0,0.00019999,2]
[340362394,1729090240679,-500.0,0.00019999,2]
[340362395,1729090240688,-500.0,0.00019999,2]
[340362396,1729090240698,-500.0,0.00019999,2]
[340362397,1729090240707,-500.0,0.00019999,2]
[340362398,1729090240717,-500.0,0.00019999,2]
[340362399,1729090240726,-500.0,0.00019999,2]
[340362400,1729090240736,-12104.534479,0.0002,2]
[340362401,1729090240745,-62831.00582149,0.0002,2]
[340363912,1729090272850,159.0,0.0002424,120]
[340363982,1729091239966,176.0,0.00027,60]
[340364042,1729091432280,-300.0,0.00017954,2]
[340364044,1729091432290,-300.0,0.00017954,2]
[340364046,1729091432299,-24900.0,0.00017955,2]
[340364048,1729091432309,-3000.0,0.00018014,2]
[340364050,1729091432318,-250.0000032,0.00018102,2]
[340364053,1729091432328,-163.75,0.00018937,2]
[340364056,1729091432337,-553.91481748,0.00018945,2]
[340364057,1729091432347,-3840.44575922,0.00018945,2]
[340364059,1729091432356,-8218.88511188,0.0001899,3]
[340364061,1729091432366,-14398.2353599,0.0001899,3]
[340364063,1729091432375,-686.14,0.0001899,3]
[340364064,1729091432384,-1232.65726595,0.00019,2]
[340364066,1729091432397,-12951.10226926,0.00019,2]
[340364129,1729091440202,-62654.78628552,0.00019,2]
[340364130,1729091440212,-803.3469412,0.00019,2]
[340364131,1729091440223,-420.0,0.0001959,2]
[340364132,1729091440232,-153.0,0.00019731,2]
[340364133,1729091440242,-153.0,0.00019731,2]
[340364134,1729091440253,-153.0,0.00019731,2]
[340364135,1729091440262,-150.0,0.0001974,2]
[340364136,1729091440271,-150.0,0.0001974,2]
[340364137,1729091440297,-527.0,0.0001974,2]
[340364138,1729091440306,-1157.0,0.0001974,2]
[340364139,1729091440316,-1806.0,0.0001974,2]
[340364140,1729091440325,-420.0,0.00019749,2]
[340364141,1729091440334,-306.0,0.000198,2]
[340364142,1729091440343,-153.0,0.000198,2]
[340364143,1729091440353,-500.0,0.00019989,2]
[340364144,1729091440362,-500.0,0.00019989,2]
[340364145,1729091440372,-500.0,0.00019989,2]
[340364146,1729091440382,-500.0,0.00019989,2]
[340364147,1729091440396,-500.0,0.00019989,2]
[340364148,1729091440405,-532.74735081,0.00019989,2]
[340364149,1729091440415,-8218.88511188,0.0001999,3]
[340364150,1729091440425,-14398.2353599,0.0001999,3]
[340364151,1729091440434,-151.0,0.0001999,2]
[340364152,1729091440444,-32312.92659661,0.0002,2]
[340364153,1729091440454,-185.762,0.0002,2]
[340364154,1729091440463,-3287.974538,0.0002,2]
[340364155,1729091440473,-151.0,0.0002,2]
[340364156,1729091440483,-153.0,0.0002006,2]
[340364157,1729091440492,-153.0,0.0002006,2]
[340364158,1729091440502,-153.0,0.0002006,2]
[340364159,1729091440511,-600.0,0.0002016,2]
[340364160,1729091440521,-153.0,0.000202,2]
[340364161,1729091440530,-153.0,0.000202,2]
[340364162,1729091440540,-600.0,0.0002037,2]
[340364163,1729091440550,-600.0,0.0002058,2]
[340364164,1729091440559,-16999.93208061,0.00020777,2]
[340364165,1729091440569,-23027.18847792,0.00020778,2]
[340364166,1729091440578,-23558.17575027,0.00020778,2]
[340364167,1729091440587,-151.0,0.00020778,2]
[340364168,1729091440597,-297.064538,0.00020778,2]
[340364169,1729091440606,-151.0,0.00020778,2]
[340364170,1729091440616,-151.0,0.00020778,2]
[340364171,1729091440626,-320.5805789,0.00020778,2]
[340364172,1729091440636,-600.0,0.0002079,2]
[340364173,1729091440646,-150.112233,0.000208,5]
[340364174,1729091440655,-150.0,0.000208,3]
[340364175,1729091440664,-1000.0,0.00020878,2]
[340364176,1729091440675,-752.31242431,0.00020878,2]
[340364177,1729091440685,-752.3124243,0.00020881,2]
[340364178,1729091440695,-153.0,0.00020882,2]
[340364179,1729091440704,-153.0,0.00020882,2]
[340364180,1729091440714,-153.0,0.00020882,2]
[340364181,1729091440724,-153.0,0.00020882,2]
[340364182,1729091440733,-153.0,0.00020882,2]
[340364183,1729091440742,-405.6167098,0.00020882,2]
[340364184,1729091440754,-153.0,0.00020882,2]
[340364185,1729091440763,-153.0,0.00020882,2]
[340364186,1729091440773,-155.9939531,0.00020882,2]
[340364187,1729091440789,-153.0,0.00020882,2]
[340364188,1729091440798,-153.0,0.00020882,2]
[340364189,1729091440813,-153.0,0.00020882,2]
[340364190,1729091440823,-153.0,0.00020882,2]
[340364191,1729091440832,-153.0,0.00020882,2]
[340364192,1729091440841,-153.0,0.00020882,2]
[340364193,1729091440851,-153.0,0.00020882,2]
[340364194,1729091440860,-153.0,0.00020882,2]
[340364195,1729091440869,-153.0,0.00020882,2]
[340364196,1729091440878,-153.0,0.00020882,2]
[340364197,1729091440887,-153.0,0.00020882,2]
[340364198,1729091440897,-306.0,0.00020882,2]
[340364199,1729091440906,-153.0,0.00020882,2]
[340364200,1729091440916,-153.0,0.00020882,2]
[340364201,1729091440925,-153.0,0.00020882,2]
[340364202,1729091440934,-153.0,0.00020882,2]
[340364203,1729091440944,-153.0,0.00020882,2]
[340364204,1729091440955,-153.0,0.00020882,2]
[340364205,1729091440965,-381.1964871,0.00020882,2]
[340364206,1729091440977,-752.3124243,0.00020883,2]
[340364207,1729091440988,-752.3124243,0.00020886,2]
[340364208,1729091440999,-752.3124243,0.00020888,2]
[340364209,1729091441008,-1243.12924026,0.00020888,2]
[340364210,1729091441018,-8218.88511188,0.0002089,3]
[340364211,1729091441032,-14398.2353599,0.0002089,3]
[340364212,1729091441043,-150.112233,0.000209,2]
[340364213,1729091441052,-500.0,0.000209,2]
[340364214,1729091441064,-8218.88511188,0.00020957,3]
[340364215,1729091441074,-14398.2353599,0.00020957,3]
[340364216,1729091441086,-8218.88511188,0.00020958,3]
[340364217,1729091441095,-14398.2353599,0.00020958,3]
[340364218,1729091441106,-151.0,0.00020967,2]
[340364219,1729091441116,-172.181982,0.00020967,2]
[340364220,1729091441126,-151.0,0.00020967,2]
[340364221,1729091441135,-151.0,0.00020967,2]
[340364222,1729091441145,-208.291443,0.00020967,2]
[340364223,1729091441154,-24656.6553356,0.00020968,3]
[340364224,1729091441164,-43194.7060796,0.00020968,3]
[340364225,1729091441178,-151.0,0.00020968,2]
[340364226,1729091441187,-327.268919,0.00020968,2]
[340364227,1729091441196,-327.268919,0.00020968,2]
[340364228,1729091441206,-151.0,0.00020968,2]
[340364229,1729091441219,-151.0,0.00020968,2]
[340364230,1729091441228,-382.131087,0.00020968,2]
[340364231,1729091441238,-382.131087,0.00020968,2]
[340364232,1729091441248,-294.322203,0.00020968,2]
[340364233,1729091441259,-151.0,0.00020968,2]
[340364234,1729091441269,-294.322203,0.00020968,2]
[340364235,1729091441283,-151.0,0.00020968,2]
[340364236,1729091441293,-151.0,0.00020968,2]
[340364237,1729091441309,-162.226344,0.00020968,2]
[340364238,1729091441324,-162.226344,0.00020968,2]
[340364239,1729091441335,-151.0,0.00020968,2]
[340364240,1729091441345,-2505.62637,0.00020968,2]
[340364241,1729091441355,-2505.62637,0.00020968,2]
[340364242,1729091441365,-151.0,0.00020968,2]
[340364243,1729091441375,-151.0,0.00020968,2]
[340364244,1729091441384,-151.0,0.00020968,2]
[340364245,1729091441394,-500.0,0.00020973,2]
[340364246,1729091441404,-598.28926952,0.00020973,2]
[340364247,1729091441414,-153.0,0.00020975,2]
[340364248,1729091441424,-153.0,0.00020975,2]
[340364249,1729091441434,-153.0,0.00020975,2]
[340364250,1729091441444,-153.0,0.00020975,2]
[340364251,1729091441455,-153.0,0.00020975,2]
[340364252,1729091441466,-153.0,0.00020975,2]
[340364253,1729091441477,-153.0,0.00020975,2]
[340364254,1729091441487,-153.0,0.00020975,2]
[340364255,1729091441497,-306.0,0.00020975,2]
[340364256,1729091441508,-153.0,0.00020975,2]
[340364257,1729091441518,-153.0,0.00020975,2]
[340364258,1729091441535,-153.0,0.00020975,2]
[340364259,1729091441547,-969.94251673,0.00020976,2]
[340364260,1729091441557,-211.03206567,0.00020977,2]
[340364261,1729091441567,-178.4048187,0.00020977,2]
[340364262,1729091441577,-98626.6213426,0.00020978,3]
[340364263,1729091441587,-54226.1466407,0.00020978,3]
[340364264,1729091441612,-922.39000908,0.00020978,3]
[340364287,1729091483462,159.0,0.0002424,120]
[340364294,1729091907214,7000.0,0.00015,2]
[340364295,1729091920833,174.43746758,0.00027,60]
[340364296,1729091924860,1740.0,0.00014,2]
[340364362,1729092632351,-3000.0,0.00015,2]
[340364363,1729092632361,-648.1,0.00018289,2]
[340364364,1729092632372,-300.0,0.0001829,2]
[340364365,1729092632381,-5159.1610322,0.00018291,2]
[340364373,1729092638441,-2940.51027846,0.00018291,2]
[340364374,1729092638452,-1452.66675199,0.00018291,2]
[340364376,1729092638655,-15347.66193735,0.00018291,2]
[340364377,1729092638667,-172.581689,0.00018661,2]
[340364378,1729092638676,-172.581689,0.00018985,2]
[340364379,1729092638686,-171.392028,0.00019178,2]
[340364380,1729092638697,-172.581689,0.0001931,2]
[340364381,1729092638706,-369.27654499,0.00019534,2]
[340364382,1729092638716,-5604.91622785,0.00019534,2]
[340364383,1729092638725,-172.581689,0.00019634,2]
[340364384,1729092638735,-150.0,0.00019838,2]
[340364385,1729092638744,-527.0,0.00019838,2]
[340364386,1729092638754,-1157.0,0.00019838,2]
[340364387,1729092638763,-1806.0,0.00019838,2]
[340364388,1729092638774,-420.0,0.0001995,2]
[340364389,1729092639065,-185.76294649,0.00019952,2]
[340364390,1729092639076,-96809.53208953,0.0001999,2]
[340364391,1729092639089,-1346.5,0.0001999,2]
[340364396,1729092640443,-57121.49612334,0.0001999,2]